fUSD/lending_fUSD_20250515
["ID","MTS","AMOUNT","RATE_DAILY","PERIOD"]
[361152467,1747309832843,-499.79,0.00011528,2]
[361152468,1747309832852,-400.0,0.00011528,2]
[361152469,1747309832861,-396.00947964,0.00011528,2]
[361152470,1747309832871,-400.0,0.00011528,2]
[361152471,1747309832880,-424.95850265,0.00011528,2]
[361152472,1747309832890,-400.0,0.00011528,2]
[361152473,1747309832899,-400.0,0.00011528,2]
[361152474,1747309832909,-501.43,0.00011528,2]
[361152475,1747309832918,-460.7430536,0.00011528,2]
[361152476,1747309832927,-400.0,0.00011528,2]
[361152477,1747309832936,-538.6,0.00011528,2]
[361152478,1747309832945,-403.91,0.00011528,2]
[361152479,1747309832954,-400.0,0.00011528,2]
[361152480,1747309832965,-400.0,0.00011528,2]
[361152481,1747309832974,-487.77,0.00011528,2]
[361152482,1747309832983,-901.18,0.00011528,2]
[361152483,1747309832992,-831.96,0.00011528,2]
[361152484,1747309833001,-400.0,0.00011528,2]
[361152485,1747309833011,-579.96,0.00011528,2]
[361152486,1747309833020,-400.0,0.00011528,2]
[361152487,1747309833031,-463.51,0.00011528,2]
[361152488,1747309833041,-405.81004046,0.00011528,2]
[361152489,1747309833051,-400.0,0.00011528,2]
[361152490,1747309833061,-400.0,0.00011528,2]
[361152491,1747309833071,-400.0,0.00011528,2]
[361152492,1747309833081,-400.0,0.00011528,2]
[361152493,1747309833090,-400.0,0.00011528,2]
[361152494,1747309833099,-400.0,0.00011528,2]
[361152495,1747309833108,-400.0,0.00011528,2]
[361152496,1747309833118,-400.0,0.00011528,2]
[361152497,1747309833127,-400.0,0.00011528,2]
[361152498,1747309833137,-421.78,0.00011528,2]
[361152499,1747309833146,-400.0,0.00011528,2]
[361152500,1747309833156,-400.0,0.00011528,2]
[361152501,1747309833165,-400.0,0.00011528,2]
[361152502,1747309833175,-400.0,0.00011528,2]
[361152503,1747309833184,-402.97682493,0.00011528,2]
[361152504,1747309833194,-400.0,0.00011528,2]
[361152505,1747309833204,-400.0,0.00011528,2]
[361152506,1747309833215,-400.0,0.00011528,2]
[361152507,1747309833224,-400.0,0.00011528,2]
[361152508,1747309833235,-400.0,0.00011528,2]
[361152509,1747309833245,-400.0,0.00011528,2]
[361152510,1747309833255,-400.0,0.00011528,2]
[361152511,1747309833264,-400.0,0.00011528,2]
[361152512,1747309833274,-400.0,0.00011528,2]
[361152513,1747309833284,-412.06254512,0.00011528,2]
[361152514,1747309833294,-400.0,0.00011528,2]
[361152515,1747309833303,-469.73,0.00011528,2]
[361152516,1747309833313,-400.0,0.00011528,2]
[361152517,1747309833323,-646.56,0.00011528,2]
[361152518,1747309833333,-400.0,0.00011528,2]
[361152519,1747309833342,-646.5,0.00011528,2]
[361152520,1747309833352,-400.0,0.00011528,2]
[361152521,1747309833361,-400.0,0.00011528,2]
[361152522,1747309833372,-400.0,0.00011528,2]
[361152523,1747309833382,-400.0,0.00011528,2]
[361152524,1747309833392,-400.0,0.00011528,2]
[361152525,1747309833401,-461.4,0.00011528,2]
[361152526,1747309833410,-830.68,0.00011528,2]
[361152527,1747309833422,-400.0,0.00011528,2]
[361152528,1747309833431,-400.0,0.00011528,2]
[361152529,1747309833443,-400.0,0.00011528,2]
[361152530,1747309833453,-412.35,0.00011528,2]
[361152531,1747309833464,-400.0,0.00011528,2]
[361152532,1747309833474,-400.0,0.00011528,2]
[361152533,1747309833484,-400.0,0.00011528,2]
[361152534,1747309833493,-688.08,0.00011528,2]
[361152535,1747309833503,-400.0,0.00011528,2]
[361152536,1747309833512,-400.0,0.00011528,2]
[361152537,1747309833522,-908.32,0.00011528,2]
[361152538,1747309833532,-462.38,0.00011528,2]
[361152539,1747309833542,-161.74207406,0.00011528,2]
[361152540,1747309833551,-400.0,0.00011528,2]
[361152541,1747309833562,-400.0,0.00011528,2]
[361152542,1747309833572,-400.0,0.00011528,2]
[361152543,1747309833581,-400.0,0.00011528,2]
[361152544,1747309833591,-400.0,0.00011528,2]
[361152545,1747309833601,-303.35915404,0.00011528,2]
[361152546,1747309833611,-400.0,0.00011528,2]
[361152547,1747309833621,-400.0,0.00011528,2]
[361152548,1747309833631,-400.0,0.00011528,2]
[361152549,1747309833641,-417.31,0.00011528,2]
[361152550,1747309833651,-400.0,0.00011528,2]
[361152551,1747309833661,-400.0,0.00011528,2]
[361152552,1747309833671,-400.0,0.00011528,2]
[361152553,1747309833681,-991.81,0.00011528,2]
[361152554,1747309833692,-400.0,0.00011528,2]
[361152555,1747309833702,-400.0,0.00011528,2]
[361152556,1747309833712,-400.0,0.00011528,2]
[361152557,1747309833723,-610.44,0.00011528,2]
[361152558,1747309833734,-400.0,0.00011528,2]
[361152559,1747309833744,-400.0,0.00011528,2]
[361152560,1747309833753,-400.0,0.00011528,2]
[361152561,1747309833763,-400.0,0.00011528,2]
[361152562,1747309833773,-235.61,0.00011528,2]
[361152563,1747309833783,-528.89,0.00011528,2]
[361152564,1747309833792,-400.0,0.00011528,2]
[361152565,1747309833801,-603.01,0.00011528,2]
[361152566,1747309833811,-589.44,0.00011528,2]
[361152567,1747309833820,-400.0,0.00011528,2]
[361152568,1747309833829,-463.5,0.00011528,2]
[361152569,1747309833838,-500.0,0.00011529,2]
[361152570,1747309833847,-500.0,0.00011529,2]
[361152571,1747309833857,-500.0,0.00011573,2]
[361152572,1747309833867,-400.0,0.00011597,2]
[361152573,1747309833876,-400.0,0.00011597,2]
[361152574,1747309833885,-400.0,0.00011597,2]
[361152575,1747309833892,-275.68021413,0.00011597,2]
[361152576,1747309833900,-344.52061501,0.00011597,2]
[361152577,1747309833908,-391.38705202,0.00011597,2]
[361152578,1747309833916,-451.08270327,0.00011597,2]
[361152579,1747309833924,-400.0,0.00011597,2]
[361152580,1747309833934,-155.8885652,0.00011597,2]
[361152581,1747309833948,-400.0,0.00011597,2]
[361152582,1747309833959,-400.0,0.00011597,2]
[361152583,1747309833971,-468.13654346,0.00011597,2]
[361152584,1747309833980,-503.46282496,0.00011597,2]
[361152585,1747309833991,-400.0,0.00011597,2]
[361152586,1747309834000,-400.0,0.00011597,2]
[361152587,1747309834011,-400.0,0.00011597,2]
[361152588,1747309834022,-400.0,0.00011597,2]
[361152589,1747309834032,-400.0,0.00011597,2]
[361152590,1747309834042,-200.0,0.00011597,2]
[361152591,1747309834053,-400.0,0.00011597,2]
[361152592,1747309834063,-213.26397535,0.00011597,2]
[361152593,1747309834074,-378.01285131,0.00011597,2]
[361152594,1747309834085,-400.0,0.00011597,2]
[361152595,1747309834098,-407.78319278,0.00011597,2]
[361152596,1747309834108,-400.0,0.00011597,2]
[361152597,1747309834118,-448.27618547,0.00011597,2]
[361152598,1747309834127,-493.58906839,0.00011597,2]
[361152599,1747309834137,-303.10375388,0.00011597,2]
[361152600,1747309834148,-400.0,0.00011597,2]
[361152601,1747309834157,-400.0,0.00011597,2]
[361152602,1747309834168,-400.0,0.00011597,2]
[361152603,1747309834178,-400.0,0.00011597,2]
[361152604,1747309834188,-400.0,0.00011597,2]
[361152605,1747309834197,-430.0,0.00011597,2]
[361152606,1747309834207,-161.983584,0.00011597,2]
[361152607,1747309834218,-400.0,0.00011597,2]
[361152608,1747309834228,-2167.858084,0.00011597,2]
[361152609,1747309834237,-1064.138675,0.00011597,2]
[361152610,1747309834246,-400.0,0.00011597,2]
[361152611,1747309834257,-400.0,0.00011597,2]
[361152612,1747309834267,-400.0,0.00011597,2]
[361152613,1747309834277,-400.0,0.00011597,2]
[361152614,1747309834287,-494.94,0.00011597,2]
[361152615,1747309834297,-400.0,0.00011597,2]
[361152616,1747309834307,-400.0,0.00011597,2]
[361152617,1747309834316,-187.23263775,0.00011597,2]
[361152618,1747309834325,-400.0,0.00011597,2]
[361152619,1747309834335,-400.0,0.00011597,2]
[361152620,1747309834344,-400.0,0.00011597,2]
[361152621,1747309834354,-157.17078329,0.00011597,2]
[361152622,1747309834364,-400.0,0.00011597,2]
[361152623,1747309834378,-250.0,0.00011597,2]
[361152624,1747309834388,-918.02,0.00011597,2]
[361152625,1747309834398,-1332.38,0.00011597,2]
[361152626,1747309834407,-400.0,0.00011597,2]
[361152627,1747309834419,-215.51324228,0.00011597,2]
[361152628,1747309834430,-400.0,0.00011597,2]
[361152629,1747309834442,-571.8,0.00011597,2]
[361152630,1747309834452,-400.0,0.00011597,2]
[361152631,1747309834461,-564.48,0.00011597,2]
[361152632,1747309834472,-400.0,0.00011597,2]
[361152633,1747309834483,-400.0,0.00011597,2]
[361152634,1747309834493,-400.0,0.00011597,2]
[361152635,1747309834507,-400.0,0.00011597,2]
[361152636,1747309834519,-400.0,0.00011597,2]
[361152637,1747309834529,-400.0,0.00011597,2]
[361152638,1747309834539,-400.0,0.00011597,2]
[361152639,1747309834550,-496.84,0.00011597,2]
[361152640,1747309834559,-400.0,0.00011597,2]
[361152641,1747309834570,-986.92,0.00011597,2]
[361152642,1747309834580,-400.0,0.00011597,2]
[361152643,1747309834590,-400.0,0.00011597,2]
[361152644,1747309834600,-400.0,0.00011597,2]
[361152645,1747309834610,-561.19,0.00011597,2]
[361152646,1747309834620,-571.08,0.00011597,2]
[361152647,1747309834630,-500.0,0.00011597,2]
[361152648,1747309834640,-406.54,0.00011597,2]
[361152649,1747309834651,-1099.85,0.00011597,2]
[361152650,1747309834661,-247.32628863,0.00011597,2]
[361152651,1747309834670,-400.0,0.00011597,2]
[361152652,1747309834680,-400.0,0.00011597,2]
[361152653,1747309834689,-1115.86,0.00011597,2]
[361152654,1747309834698,-425.34,0.00011597,2]
[361152655,1747309834706,-447.82,0.00011597,2]
[361152656,1747309834716,-400.0,0.00011597,2]
[361152657,1747309834726,-887.11,0.00011597,2]
[361152658,1747309834735,-2357.11,0.00011597,2]
[361152659,1747309834744,-856.1,0.00011597,2]
[361152660,1747309834754,-400.0,0.00011597,2]
[361152661,1747309834763,-153.77374073,0.00011597,2]
[361152662,1747309834773,-598.5,0.00011597,2]
[361152663,1747309834783,-400.0,0.00011597,2]
[361152664,1747309834792,-400.0,0.00011597,2]
[361152665,1747309834802,-400.0,0.00011597,2]
[361152666,1747309834811,-400.0,0.00011597,2]
[361152667,1747309834821,-400.0,0.00011597,2]
[361152668,1747309834830,-400.0,0.00011597,2]
[361152669,1747309834840,-2883.62,0.00011597,2]
[361152670,1747309834850,-722.69,0.00011597,2]
[361152671,1747309834859,-412.13,0.00011597,2]
[361152672,1747309834869,-400.0,0.00011597,2]
[361152673,1747309834878,-400.0,0.00011597,2]
[361152674,1747309834888,-1131.14,0.00011597,2]
[361152675,1747309834898,-1742.01,0.00011597,2]
[361152676,1747309834908,-400.0,0.00011597,2]
[361152677,1747309834917,-867.98,0.00011597,2]
[361152678,1747309834927,-400.0,0.00011597,2]
[361152679,1747309834936,-400.0,0.00011597,2]
[361152680,1747309834946,-1190.23,0.00011597,2]
[361152681,1747309834955,-400.0,0.00011597,2]
[361152682,1747309834964,-530.2,0.00011597,2]
[361152683,1747309834974,-658.44,0.00011597,2]
[361152684,1747309834982,-400.0,0.00011597,2]
[361152685,1747309834991,-1032.79,0.00011597,2]
[361152686,1747309835000,-444.32,0.00011597,2]
[361152687,1747309835008,-400.0,0.00011597,2]
[361152688,1747309835017,-673.17,0.00011597,2]
[361152689,1747309835026,-527.48,0.00011597,2]
[361152690,1747309835034,-400.0,0.00011597,2]
[361152691,1747309835048,-558.59,0.00011597,2]
[361152692,1747309835057,-400.0,0.00011597,2]
[361152693,1747309835065,-400.0,0.00011597,2]
[361152694,1747309835074,-400.0,0.00011597,2]
[361152695,1747309835083,-512.03,0.00011597,2]
[361152696,1747309835367,-400.0,0.00011597,2]
[361152697,1747309835380,-2037.81,0.00011597,2]
[361152698,1747309835390,-12523.031323,0.00011597,2]
[361152699,1747309835415,-618.9094002,0.00011597,2]
[361152701,1747309837582,-1000.0,0.00011498,2]
[361152702,1747309837592,-4749.6380396,0.00011597,2]
[361152703,1747309837603,-1029.22745879,0.00011597,2]
[361152704,1747309837637,-971.9598939,0.00011597,2]
[361152705,1747309837744,-2704.56,0.00011597,2]
[361152706,1747309837756,-500.94577421,0.00011597,2]
[361152822,1747309839735,-3481.7326711,0.00011597,2]
[361152823,1747309840002,-636.0425114,0.00011597,2]
[361152824,1747309840016,-464.03396,0.00011597,2]
[361152825,1747309840056,-9268.9889678,0.00011597,2]
[361152826,1747309840065,-400.0,0.00011597,2]
[361152827,1747309840075,-400.0,0.00011597,2]
[361152828,1747309840084,-400.0,0.00011597,2]
[361152829,1747309840095,-683.11,0.00011597,2]
[361152830,1747309840105,-401.12384833,0.00011598,2]
[361152831,1747309840115,-400.0,0.00011598,2]
[361152832,1747309840126,-400.0,0.00011598,2]
[361152833,1747309840136,-400.0,0.00011598,2]
[361152834,1747309840145,-331.32905388,0.00011598,2]
[361152835,1747309840269,-68.67094612,0.00011598,2]
[361152836,1747309840279,-400.0,0.00011598,2]
[361152837,1747309840288,-320.05323028,0.00011598,2]
[361152863,1747309840757,-0.00325892,0.00011598,2]
[361152864,1747309840768,-393.1335108,0.00011598,2]
[361152865,1747309840777,-400.0,0.00011598,2]
[361152866,1747309840787,-469.17,0.00011598,2]
[361152867,1747309840796,-400.0,0.00011598,2]
[361152868,1747309840805,-400.0,0.00011598,2]
[361152869,1747309840814,-463.44,0.00011598,2]
[361152870,1747309840824,-400.0,0.00011598,2]
[361152871,1747309840834,-450.82,0.00011598,2]
[361152872,1747309840843,-449.73197836,0.00011598,2]
[361152873,1747309840853,-569.82,0.00011598,2]
[361152874,1747309840862,-405.75,0.00011598,2]
[361152875,1747309840871,-400.0,0.00011598,2]
[361152876,1747309840880,-400.0,0.00011598,2]
[361152877,1747309840888,-400.0,0.00011598,2]
[361152878,1747309840897,-482.99,0.00011598,2]
[361152879,1747309840905,-400.0,0.00011598,2]
[361152880,1747309840914,-400.0,0.00011598,2]
[361152881,1747309840923,-913.04,0.00011598,2]
[361152882,1747309840932,-373.74,0.00011598,2]
[361152883,1747309840942,-504.91,0.00011598,2]
[361152884,1747309840951,-400.0,0.00011598,2]
[361152885,1747309840960,-400.0,0.00011598,2]
[361152886,1747309840970,-400.0,0.00011598,2]
[361152887,1747309840980,-400.0,0.00011598,2]
[361152888,1747309840989,-400.0,0.00011598,2]
[361152889,1747309840998,-400.0,0.00011598,2]
[361152890,1747309841007,-1246.87,0.00011598,2]
[361152891,1747309841016,-400.0,0.00011598,2]
[361152892,1747309841026,-294.67948117,0.00011598,2]
[361152893,1747309841038,-400.0,0.00011598,2]
[361152894,1747309841048,-400.0,0.00011598,2]
[361152895,1747309841057,-400.0,0.00011598,2]
[361152896,1747309841066,-400.0,0.00011598,2]
[361152897,1747309841077,-417.22,0.00011598,2]
[361152898,1747309841087,-425.56,0.00011598,2]
[361152899,1747309841096,-400.0,0.00011598,2]
[361152900,1747309841106,-400.0,0.00011598,2]
[361152901,1747309841116,-400.0,0.00011598,2]
[361152902,1747309841127,-400.0,0.00011598,2]
[361152903,1747309841137,-400.0,0.00011598,2]
[361152904,1747309841147,-400.0,0.00011598,2]
[361152905,1747309841156,-400.0,0.00011598,2]
[361152906,1747309841165,-400.0,0.00011598,2]
[361152907,1747309841175,-400.0,0.00011598,2]
[361152908,1747309841412,-400.0,0.00011598,2]
[361152909,1747309841423,-400.0,0.00011598,2]
[361152910,1747309841434,-400.0,0.00011598,2]
[361152911,1747309841446,-400.0,0.00011598,2]
[361152912,1747309841459,-400.0,0.00011598,2]
[361152913,1747309841468,-493.42,0.00011598,2]
[361152914,1747309841479,-400.0,0.00011598,2]
[361152915,1747309841488,-491.77,0.00011598,2]
[361152916,1747309841498,-151.0,0.00011598,2]
[361152917,1747309841508,-400.0,0.00011598,2]
[361152918,1747309841517,-400.0,0.00011598,2]
[361152919,1747309841528,-400.0,0.00011598,2]
[361152920,1747309841539,-400.0,0.00011598,2]
[361152921,1747309841549,-356.91954707,0.00011598,2]
[361152926,1747309842902,-447.59,0.00011597,2]
[361152927,1747309842912,-43.08045293,0.00011598,2]
[361152928,1747309842921,-400.0,0.00011598,2]
[361152929,1747309842930,-400.0,0.00011598,2]
[361152930,1747309842940,-400.0,0.00011598,2]
[361152931,1747309842949,-400.0,0.00011598,2]
[361152932,1747309842958,-151.0,0.00011598,2]
[361152933,1747309842967,-500.0,0.00011598,2]
[361152934,1747309842977,-400.0,0.00011598,2]
[361152935,1747309842987,-151.0,0.00011598,2]
[361152936,1747309842996,-195.21337276,0.00011598,2]
[361152937,1747309843005,-151.0,0.00011598,2]
[361152938,1747309843015,-549.09,0.00011598,2]
[361152939,1747309843024,-400.0,0.00011598,2]
[361152940,1747309843033,-151.0,0.00011598,2]
[361152941,1747309843043,-902.56,0.00011598,2]
[361152942,1747309843054,-1460.76,0.00011598,2]
[361152943,1747309843065,-532.98,0.00011598,2]
[361152944,1747309843076,-216.5098182,0.00011598,2]
[361152945,1747309843088,-905.71,0.00011598,2]
[361152946,1747309843098,-591.24,0.00011598,2]
[361152948,1747309843108,-264.311157,0.00011598,2]
[361152950,1747309843118,-400.0,0.00011598,2]
[361152951,1747309843128,-499.55,0.00011598,2]
[361152952,1747309843137,-500.0,0.00011598,2]
[361152953,1747309843147,-151.0,0.00011598,2]
[361152954,1747309843156,-822.11,0.00011598,2]
[361152955,1747309843165,-400.0,0.00011598,2]
[361152957,1747309843174,-1237.27,0.00011598,2]
[361152958,1747309843183,-151.0,0.00011598,2]
[361152961,1747309843193,-400.0,0.00011598,2]
[361152962,1747309843202,-2649.91,0.00011598,2]
[361152963,1747309843211,-151.0,0.00011598,2]
[361152964,1747309843220,-422.23,0.00011598,2]
[361152966,1747309843230,-626.59,0.00011598,2]
[361152967,1747309843240,-1055.19,0.00011598,2]
[361152968,1747309843249,-966.65,0.00011598,2]
[361152969,1747309843259,-400.0,0.00011598,2]
[361152971,1747309843269,-995.83,0.00011598,2]
[361152973,1747309843278,-400.0,0.00011598,2]
[361152974,1747309843288,-570.03,0.00011598,2]
[361152975,1747309843297,-400.65,0.00011598,2]
[361152976,1747309843306,-400.0,0.00011598,2]
[361152977,1747309843315,-400.0,0.00011598,2]
[361152978,1747309843325,-400.0,0.00011598,2]
[361152979,1747309843334,-982.09,0.00011598,2]
[361152980,1747309843343,-413.16,0.00011598,2]
[361152981,1747309843352,-400.0,0.00011598,2]
[361152982,1747309843362,-400.0,0.00011598,2]
[361152983,1747309843372,-570.64,0.00011598,2]
[361152984,1747309843382,-151.0,0.00011598,2]
[361152985,1747309843392,-805.76,0.00011598,2]
[361152986,1747309843401,-400.0,0.00011598,2]
[361152987,1747309843410,-970.8,0.00011598,2]
[361152988,1747309843421,-509.07,0.00011598,2]
[361152989,1747309843432,-400.0,0.00011598,2]
[361152990,1747309843443,-400.0,0.00011598,2]
[361152991,1747309843456,-3734.8,0.00011598,2]
[361152992,1747309843467,-400.0,0.00011598,2]
[361152993,1747309843477,-400.0,0.00011598,2]
[361152994,1747309843488,-941.01,0.00011598,2]
[361152995,1747309843497,-769.3,0.00011598,2]
[361152996,1747309843506,-3672.36,0.00011598,2]
[361152997,1747309843516,-2206.7,0.00011598,2]
[361152998,1747309843525,-400.0,0.00011598,2]
[361152999,1747309843536,-1554.06,0.00011598,2]
[361153000,1747309843546,-370.28,0.00011598,2]
[361153001,1747309843556,-2357.22,0.00011598,2]
[361153002,1747309843566,-400.0,0.00011598,2]
[361153003,1747309843575,-414.97,0.00011598,2]
[361153004,1747309843584,-400.0,0.00011598,2]
[361153005,1747309843594,-664.63,0.00011598,2]
[361153006,1747309843603,-2014.97,0.00011598,2]
[361153007,1747309843612,-400.0,0.00011598,2]
[361153008,1747309843621,-1813.44,0.00011598,2]
[361153009,1747309843630,-496.41,0.00011598,2]
[361153010,1747309843640,-652.81,0.00011598,2]
[361153011,1747309843649,-151.0,0.00011598,2]
[361153012,1747309843658,-400.0,0.00011598,2]
[361153013,1747309843667,-3542.92,0.00011598,2]
[361153014,1747309843677,-467.62,0.00011598,2]
[361153015,1747309843686,-400.0,0.00011598,2]
[361153016,1747309843695,-558.87,0.00011598,2]
[361153017,1747309843705,-151.0,0.00011598,2]
[361153018,1747309843714,-9380.05,0.00011598,2]
[361153019,1747309843725,-151.0,0.00011598,2]
[361153020,1747309843734,-400.0,0.00011598,2]
[361153021,1747309843744,-782.78,0.00011598,2]
[361153022,1747309843754,-400.0,0.00011598,2]
[361153023,1747309843763,-581.16,0.00011598,2]
[361153024,1747309843772,-3529.13,0.00011598,2]
[361153025,1747309843781,-400.0,0.00011598,2]
[361153026,1747309843791,-2163.03,0.00011598,2]
[361153027,1747309843800,-540.09,0.00011598,2]
[361153028,1747309843809,-5488.3,0.00011598,2]
[361153029,1747309843818,-400.0,0.00011598,2]
[361153030,1747309843828,-618.22,0.00011598,2]
[361153031,1747309843837,-400.0,0.00011598,2]
[361153032,1747309843847,-875.71,0.00011598,2]
[361153033,1747309843857,-151.0,0.00011598,2]
[361153034,1747309843866,-151.0,0.00011598,2]
[361153035,1747309843876,-400.0,0.00011598,2]
[361153036,1747309843885,-6899.71,0.00011598,2]
[361153037,1747309843894,-400.0,0.00011598,2]
[361153038,1747309843903,-1649.71,0.00011598,2]
[361153039,1747309843913,-415.15,0.00011598,2]
[361153040,1747309843922,-151.0,0.00011599,2]
[361153041,1747309843931,-151.0,0.00011599,2]
[361153042,1747309843941,-151.0,0.00011599,2]
[361153043,1747309843950,-151.0,0.00011599,2]
[361153044,1747309843959,-151.0,0.00011599,2]
[361153045,1747309843968,-151.0,0.00011599,2]
[361153046,1747309843978,-151.0,0.00011599,2]
[361153047,1747309843987,-400.0,0.00011599,2]
[361153048,1747309843998,-151.0,0.00011599,2]
[361153049,1747309844007,-151.0,0.00011599,2]
[361153050,1747309844016,-592.37,0.00011599,2]
[361153051,1747309844025,-1091.64,0.00011599,2]
[361153052,1747309844035,-725.06,0.00011599,2]
[361153053,1747309844044,-400.0,0.00011599,2]
[361153054,1747309844055,-151.0,0.00011599,2]
[361153055,1747309844065,-151.0,0.00011599,2]
[361153056,1747309844075,-151.0,0.00011599,2]
[361153057,1747309844083,-151.0,0.00011599,2]
[361153058,1747309844093,-151.0,0.00011599,2]
[361153059,1747309844103,-151.0,0.00011599,2]
[361153060,1747309844113,-151.0,0.00011599,2]
[361153061,1747309844124,-6300.0,0.000116,4]
[361153062,1747309844134,-150.18,0.00011637,2]
[361153063,1747309844145,-176.449,0.00011637,2]
[361153064,1747309844154,-2754.124,0.00011637,2]
[361153065,1747309844164,-628.0,0.00011651,2]
[361153066,1747309844173,-553.0,0.00011651,2]
[361153067,1747309844182,-1271.367,0.00011651,2]
[361153068,1747309844192,-1052.178,0.00011651,2]
[361153069,1747309844202,-574.84,0.00011651,2]
[361153070,1747309844211,-918.0,0.00011651,2]
[361153071,1747309844220,-154.0,0.00011651,2]
[361153072,1747309844230,-4035.0,0.00011651,2]
[361153073,1747309844240,-6813.0,0.00011651,2]
[361153074,1747309844249,-438.76,0.00011651,2]
[361153075,1747309844259,-169.57305,0.00011652,2]
[361153076,1747309844268,-161.236589,0.00011652,2]
[361153077,1747309844277,-165.44092,0.00011652,2]
[361153078,1747309844287,-151.330508,0.00011652,2]
[361153079,1747309844296,-151.0,0.00011652,2]
[361153080,1747309844306,-151.0,0.00011652,2]
[361153081,1747309844315,-151.0,0.00011652,2]
[361153082,1747309844325,-151.0,0.00011652,2]
[361153083,1747309844335,-644.60005418,0.00011684,2]
[361153084,1747309844345,-151.0,0.0001169,2]
[361153085,1747309844354,-151.0,0.0001169,2]
[361153086,1747309844364,-1869.0,0.000117,2]
[361153087,1747309844378,-9400.0,0.000117,4]
[361153088,1747309844388,-151.0,0.000117,2]
[361153089,1747309844397,-379.1465765,0.00011702,2]
[361153090,1747309844407,-4635.03,0.00011703,2]
[361153091,1747309844417,-151.0,0.00011732,2]
[361153092,1747309844427,-151.0,0.00011733,2]
[361153093,1747309844437,-151.0,0.00011733,2]
[361153094,1747309844448,-200.0,0.00011755,2]
[361153095,1747309844458,-811.76359526,0.00011772,2]
[361153096,1747309844467,-150.0,0.00011772,2]
[361153097,1747309844477,-299.07964519,0.00011772,2]
[361153098,1747309844492,-160.30057005,0.00011773,2]
[361153099,1747309844506,-178.05753638,0.00011784,2]
[361153100,1747309844519,-70995.61540705,0.00011784,2]
[361153101,1747309844532,-40909.19974704,0.00011784,2]
[361153103,1747309845609,-350.41,0.00010881,2]
[361153104,1747309845621,-3644.36402288,0.00011651,2]
[361153105,1747309845663,-2296.63597712,0.00011651,2]
[361153106,1747309845677,-315.31316588,0.00011784,2]
[361153107,1747309845690,-830.41797801,0.00011784,2]
[361153108,1747309845819,-384.16329,0.00011597,2]
[361153109,1747309845834,-15.83671,0.00011597,2]
[361153110,1747309845846,-237.68329,0.00011784,2]
[361153111,1747309845927,-400.0,0.00011598,2]
[361153112,1747309845939,-220.1702649,0.00011784,2]
[361153113,1747309845953,-3730.83341289,0.00011784,2]
[361153114,1747309845967,-16084.43910003,0.00011784,2]
[361153115,1747309845981,-2597.90981342,0.00011784,2]
[361153116,1747309845994,-1218.40535053,0.00011784,2]
[361153117,1747309846007,-547.84176427,0.00011784,2]
[361153118,1747309846021,-2329.55927372,0.00011784,2]
[361153323,1747309991147,150.0,0.00015,20]
[361153324,1747310060291,712.58,8.755e-05,2]